Cogmind - Beta 16 @@@ ROGUE MODE // 2025.11.03 @ 22:32:54 Player: War__Prophet Result: Destroyed by S-10 Pest with Light Assault Rifle Performance ------------- Evolutions (1) 500 Regions Visited (4) 800 Robots Destroyed (28) 140 Value Destroyed (448) 448 Prototype IDs (2) 40 Alien Tech Used (0) 0 Bonus (0) 0 TOTAL SCORE: 1928 Bonus ------- None Cogmind --------- Core Integrity 0/400 Matter 300/300 Energy 29/100 System Corruption 1% Temperature Cool (0) Movement Flying (40) Location -9/Storage Parts ------- > --- POWER (1) -------- (None) > --- PROPULSION (2) --- Flight Unit > --- UTILITY (4) ------ Terrain Scanner Terrain Scan Processor > --- WEAPON (2) ------- Flail > --- INVENTORY (5) ---- Weight Redist. System Flail Flail Flail Flail Peak State ------------ > --- POWER ------------ (None) > --- PROPULSION ------- Backup Propulsion I > --- UTILITY ---------- Drone Bay Drone Bay Drone Bay Drone Bay > --- WEAPON ----------- Flail Flail > --- INVENTORY -------- Weight Redist. System Flail Flail Flail Flail [Rating: 26] Favorites ----------- Power Backup Power I Engine Backup Power I Propulsion Improved Flight Unit Hover Unit Backup Propulsion I Flight Unit Improved Flight Unit Utility Drone Bay Device Drone Bay Processor Terrain Scan Processor Protection Backup Plating I Weapon Flail Energy Gun Backup Laser I Launcher Grenade Launcher Impact Weapon Flail Build | -11 -10 -10 -9 -9 ------- Run | Yrd Mat Min Mat Sto Slots Evolved 2 | . . . 2 . Power . | . . . . . Propulsion . | . . . . . Utility 2 | . . . 2 . Weapon . | . . . . . Parts Attached 28 | . . 3 . 25 Power 2 | . . . . 2 Engine 2 | . . . . 2 Core . | . . . . . Reactor . | . . . . . Propulsion 6 | . . 1 . 5 Treads . | . . . . . Leg . | . . . . . Wheel . | . . . . . Hover 1 | . . . . 1 Flight 5 | . . 1 . 4 Utility 17 | . . 1 . 16 Device 12 | . . . . 12 Storage . | . . . . . Processor 5 | . . 1 . 4 Hackware . | . . . . . Protection . | . . . . . Artifact . | . . . . . Weapon 3 | . . 1 . 2 Energy Gun . | . . . . . Energy Cannon . | . . . . . Ballistic Gun . | . . . . . Ballistic Cannon . | . . . . . Launcher 1 | . . 1 . . Special Weapon . | . . . . . Impact Weapon 2 | . . . . 2 Slashing Weapon . | . . . . . Piercing Weapon . | . . . . . Special Melee Weapon . | . . . . . Unidentified Prototypes 2 | . . . . 2 Corrupted Parts 1 | . . . . 1 System Corruption 1 | . . . . 1 Parts Lost 9 | . . . . 9 Power 1 | . . . . 1 Propulsion 5 | . . . . 5 Utility 2 | . . . . 2 Weapon 1 | . . . . 1 Highest Loss Streak 3 | . . . . 3 To Critical Strikes . | . . . . . Average Backups 3 | . . . 1 4 Power . | . . . . . Propulsion . | . . . . . Utility . | . . . . . Weapon 2 | . . . 1 3 Tool/Special . | . . . . . Unused Backups 4 | . . . . 4 Power . | . . . . . Propulsion . | . . . . . Utility . | . . . . . Weapon 4 | . . . . 4 Tool/Special . | . . . . . Average Slot Usage (%) 49 | . . 18 22 58 Engine 1 | . . . . 1 Hover 3 | . . . . 4 Flight 6 | . . 9 11 7 Device 12 | . . . . 15 Processor 5 | . . 9 11 5 Protection 2 | . . . . 3 Energy Gun 2 | . . . . 3 Impact Weapon 14 | . . . . 17 Peak Build Rating 26 | . . 2 2 26 Average Rating 11 | . . 1 2 13 On Entrance . | . . . 2 2 Avg Prop Armor Cover (%) . | . . . . . Naked Turns 74 | . 61 4 . 9 Heaviest Build 28 | . . . . 28 Greatest Support 12 | 3 3 4 4 12 Greatest Overweight (x) 9 | . . . . 9 Average Overweight (x) . | . . . . . Largest Inventory Capacity 5 | 5 5 5 5 5 Average Capacity 5 | 5 5 5 5 5 Most Carried 5 | . 1 1 1 5 Average Carried 3 | . . . 1 4 Final Capacity 5 | 5 5 5 5 5 Final Carried 5 | . 1 1 1 5 Class Distribution -------------------- 100% | Mutant Dominant Class ---------------- Mutant | -10/Materials Mutant | -10/Mines Mutant | -9/Materials Mutant | -9/Storage Resources | -11 -10 -10 -9 -9 ----------- Run | Yrd Mat Min Mat Sto Matter Collected 515 | . . 123 . 392 Remotely . | . . . . . Salvage Created 918 | . . 8 . 910 Parts 45 | . . 7 . 38 Haulers Intercepted 2 | . . . . 2 Recyclers Shooed 1 | . . . . 1 Parts Field Recycled . | . . . . . Retrieved Matter . | . . . . . Parts Self-Destructed . | . . . . . Prevented . | . . . . . Parts Restored . | . . . . . Kills | -11 -10 -10 -9 -9 ------- Run | Yrd Mat Min Mat Sto Combat Hostiles Destroyed 13 | . . 3 . 10 Melee 4 | . . . . 4 Guns 3 | . . . . 3 AOE 4 | . . 3 . 1 Classes Destroyed 7 | . . 1 . 6 Worker 7 | . . . . 7 Builder 2 | . . . . 2 Hauler 2 | . . . . 2 Recycler 4 | . . . . 4 Swarmer 6 | . . 3 . 3 Grunt 2 | . . . . 2 Sentry 5 | . . . . 5 Best Kill Streak 5 | . . 3 . 5 Combat Bots Only 3 | . . 3 . 3 Max Kills in Single Turn 2 | . . 2 . 1 Gunslinging . | . . . . . Exploded 2 | . . 2 . 1 Melee 1 | . . . . 1 Uniques/NPCs Destroyed . | . . . . . Combat | -11 -10 -10 -9 -9 -------- Run | Yrd Mat Min Mat Sto Hostile Shots Fired 117 | . . 5 . 112 Missed 41 | . . 1 . 40 Hits 76 | . . 4 . 72 Projectile 76 | . . 4 . 72 Critical Strikes 5 | . . . . 5 Damage Taken 1108 | . . 69 . 1039 Core 458 | . . 53 . 405 Absorbed by Shields . | . . . . . Core Remaining (%) 89 | 100 . 78 . . Volleys Fired 20 | . . 2 . 18 Largest 2 | . . 1 . 2 Hottest 60 | . . 30 . 60 Shots Fired 35 | . . 2 . 33 Gun 30 | . . . . 30 Cannon . | . . . . . Launcher 5 | . . 2 . 3 Special . | . . . . . Kinetic . | . . . . . Thermal 30 | . . . . 30 Explosive 5 | . . 2 . 3 Electromagnetic . | . . . . . Robot Hit Streak 15 | . . 1 . 15 Robot Miss Streak 1 | . . 1 . 1 Penetration Max . | . . . . . Secondary Targets . | . . . . . Shots Hit Robots 66 | . . 1 . 65 Core Hits 24 | . . 3 . 21 Critical Kills 2 | . . . . 2 Critical Parts Destroyed 5 | . . . . 5 Critical Strikes 7 | . . . . 7 Smash 7 | . . . . 7 Melee Attacks 87 | . . . . 87 Impact 87 | . . . . 87 Slashing . | . . . . . Piercing . | . . . . . Sneak Attacks 13 | . . . . 13 Combat Hostiles . | . . . . . Follow-up Attacks 9 | . . . . 9 Damage Inflicted 2078 | . . 128 . 1950 Guns 236 | . . . . 236 Cannons . | . . . . . Explosions 287 | . . 128 . 159 Melee 1555 | . . . . 1555 Ramming . | . . . . . Kinetic . | . . . . . Thermal 236 | . . . . 236 Explosive 287 | . . 128 . 159 Electromagnetic . | . . . . . Impact 1555 | . . . . 1555 Slashing . | . . . . . Piercing . | . . . . . Highest Corruption 1 | . . . . 1 Average Corruption 1 | . . . . 1 Corruption Purged . | . . . . . Corruption Blocked . | . . . . . Effects 1 | . . . . 1 Message Errors 1 | . . . . 1 Overload Shots . | . . . . . Overflow Damage 484 | . . . . 484 Projectiles . | . . . . . Explosions 10 | . . . . 10 Melee 474 | . . . . 474 Knockbacks 4 | . . . . 4 Impact 4 | . . . . 4 Kinetic . | . . . . . Secondary . | . . . . . Self-Inflicted Damage 172 | . . 39 . 133 Shots 6 | . . 2 . 4 Rammed . | . . . . . Targets Rammed . | . . . . . Kicked . | . . . . . Crushed . | . . . . . Highest Temperature 22 | . . 5 . 22 Average Temperature 7 | . . 5 . 7 Received Heat Transfer 342 | . . . . 342 Siege Activations . | . . . . . Martial Activations . | . . . . . Shielding Activations . | . . . . . Robots Disrupted . | . . . . . Combat Hostiles . | . . . . . Robots Corrupted 6 | . . . . 6 Combat Hostiles 2 | . . . . 2 Parts Fried 7 | . . . . 7 Impact Corruptions 21 | . . . . 21 Robots Melted . | . . . . . Combat Hostiles . | . . . . . Parts Melted 2 | . . . . 2 Heat Transferred 962 | . . . . 962 Parts Sabotaged . | . . . . . Parts Stolen . | . . . . . Parts Stripped . | . . . . . Power Chain Reactions . | . . . . . Alert | -11 -10 -10 -9 -9 ------- Run | Yrd Mat Min Mat Sto Maximum Alert Level . | . . . . . Low Security (%) 100 | 100 100 100 100 100 Level 1 . | . . . . . Level 2 . | . . . . . Level 3 . | . . . . . Level 4 . | . . . . . Level 5 . | . . . . . High Security . | . . . . . Max Security . | . . . . . Peak Influence 99 | . . 99 30 81 Initial 30 | . . . 30 12 Average 42 | . . 84 30 43 Influence Increases 643 | . . 99 . 544 Destroy 0b10 Robot/C 260 | . . 60 . 200 Destroy 0b10 Robot/NC 75 | . . . . 75 Destroy Leader 94 | . . 10 . 84 Allied During Kill 3 | . . . . 3 Successful Hack 6 | . . . . 6 Disable Machine 75 | . . . . 75 Destroy Structure 40 | . . 14 . 26 Partial Spotted 15 | . . 15 . . Lose Combat Pursuer 75 | . . . . 75 Influence Decreases 619 | . . 20 49 550 Entered New Map 67 | . . . 49 18 Time Decay 314 | . . 20 . 294 Lost Part 90 | . . . . 90 Lost Ally 148 | . . . . 148 Squads Dispatched 5 | . 2 . . 3 Investigation 1 | . . . . 1 Extermination . | . . . . . Reinforcement 3 | . 2 . . 1 Assault . | . . . . . Garrison 1 | . . . . 1 Intercept . | . . . . . Searches Triggered . | . . . . . Construction Impeded . | . . . . . Haulers Reinforced . | . . . . . Active Scanning Responses . | . . . . . Cargo Convoy Interrupts . | . . . . . Stealth | -11 -10 -10 -9 -9 --------- Run | Yrd Mat Min Mat Sto Distress Signals 1 | . 1 . . . Communications Jammed . | . . . . . Distress Signals . | . . . . . Times Spotted 26 | . 4 3 . 19 Peak Tracking Total 5 | . 5 3 . 5 Tactical Retreats 2 | . . . . 2 Traps | -11 -10 -10 -9 -9 ------- Run | Yrd Mat Min Mat Sto Traps Triggered 1 | . . . . 1 Indirectly . | . . . . . Trap Hack Attempts . | . . . . . Triggered . | . . . . . Disarmed . | . . . . . Reprogrammed . | . . . . . Reused . | . . . . . Traps Extracted . | . . . . . Installed . | . . . . . Triggered . | . . . . . Machines | -11 -10 -10 -9 -9 ---------- Run | Yrd Mat Min Mat Sto Machines Disabled 5 | . . . . 5 Max in Single Turn 1 | . . . . 1 Machines Repaired . | . . . . . Machines Dismantled . | . . . . . Machines Sabotaged . | . . . . . Overloaded Fab Kills . | . . . . . Hacking | -11 -10 -10 -9 -9 --------- Run | Yrd Mat Min Mat Sto Machines Accessed 2 | . . . . 2 Terminals 1 | . . . . 1 Fabricators . | . . . . . Repair Stations 1 | . . . . 1 Recycling Units . | . . . . . Scanalyzers . | . . . . . Garrison Access . | . . . . . Total Hacks 3 | . . . . 3 Successful 2 | . . . . 2 Failed 1 | . . . . 1 Catastrophic . | . . . . . Database Lockouts . | . . . . . Manual . | . . . . . Terminals 2 | . . . . 2 Fabricators . | . . . . . Repair Stations 1 | . . . . 1 Recycling Units . | . . . . . Scanalyzers . | . . . . . Garrison Access . | . . . . . Terminal Hacks 1 | . . . . 1 Open Door 1 | . . . . 1 Fabricator Hacks . | . . . . . Repair Station Hacks 1 | . . . . 1 Refit 1 | . . . . 1 Recycling Unit Hacks . | . . . . . Scanalyzer . | . . . . . Garrison Access Hacks . | . . . . . Unauthorized Hacks . | . . . . . Terminals . | . . . . . Fabricators . | . . . . . Repair Stations . | . . . . . Recycling Units . | . . . . . Scanalyzers . | . . . . . Garrison Access . | . . . . . Data Cores Recovered . | . . . . . Used . | . . . . . Hacking Detections 1 | . . . . 1 Full Trace Events . | . . . . . Feedback Events . | . . . . . Feedback Blocked . | . . . . . Robot Schematics Acquired . | . . . . . Robots Built . | . . . . . Authchips . | . . . . . Time . | . . . . . Total Robot Build Rating . | . . . . . Part Schematics Acquired . | . . . . . Parts Built . | . . . . . Authchips . | . . . . . Time . | . . . . . Total Part Build Rating . | . . . . . Part Studies Acquired . | . . . . . Parts Repaired . | . . . . . Time . | . . . . . Parts Recycled . | . . . . . Recycled Matter . | . . . . . Retrieved Matter . | . . . . . Retrieved Components . | . . . . . Parts Scanalyzed . | . . . . . Part Schematics Acquired . | . . . . . Parts Damaged . | . . . . . Bothacking | -11 -10 -10 -9 -9 ------------ Run | Yrd Mat Min Mat Sto Used RIF Installer . | . . . . . Robots Hacked . | . . . . . Non-combat . | . . . . . Combat . | . . . . . Robot Hacks Applied . | . . . . . Relay Couplers Released . | . . . . . Fabnet Peak Effective % . | . . . . . Robots Rewired . | . . . . . Allies Hacked . | . . . . . Hacks Repelled . | . . . . . Allies | -11 -10 -10 -9 -9 -------- Run | Yrd Mat Min Mat Sto Total Allies . | . . . . . Largest Group . | . . . . . Highest-Rated Group . | . . . . . Highest-Rated Ally . | . . . . . Total Orders . | . . . . . Ally Attacks . | . . . . . Total Damage . | . . . . . Kills . | . . . . . Allies Corrupted . | . . . . . Allies Melted . | . . . . . Intel | -11 -10 -10 -9 -9 ------- Run | Yrd Mat Min Mat Sto Active Infowar (turns) 201 | . . . . 201 Sensors 7 | . . . . 7 Terrain 201 | . . . . 201 Robot Analysis Total . | . . . . . Derelict Logs Recovered 1 | . . 1 . . Drone Launches 21 | . . . . 21 Drone Recoveries 5 | . . . . 5 Exploration | -11 -10 -10 -9 -9 ------------- Run | Yrd Mat Min Mat Sto Turns Passed 776 | 11 61 52 3 649 Spaces Moved 739 | 22 119 108 8 482 Core 202 | 22 119 4 . 57 Treads . | . . . . . Legs . | . . . . . Wheels . | . . . . . Hover 87 | . . . . 87 Flight 450 | . . 104 8 338 Fastest Speed 34 | 50 50 40 40 34 Average Speed 64 | 50 50 40 40 73 Slowest Speed 500 | 50 50 50 40 500 Overloaded Moves . | . . . . . Propulsion Burnouts . | . . . . . Robots Hopped 5 | . . 1 . 4 Potential Cave-ins . | . . . . . Cave-ins Triggered . | . . . . . Exploration Rate (%) 20 | 3 19 19 2 60 Regions Visited 4 Branch Regions 2 Pre-discovered Areas . | . . . . . Known Exits Taken . | . . . . . Unknown Exits Taken 4 | 1 1 1 1 . Scrap Searched 2 | . . 2 . . Spaces Dug 3 | . . . . 3 Terrain Destroyed 43 | . . 16 . 27 Melee 3 | . . . . 3 Projectile . | . . . . . AOE 40 | . . 16 . 24 Terrain Rammed . | . . . . . Walls Destroyed . | . . . . . Machines Disabled . | . . . . . Actions | -11 -10 -10 -9 -9 --------- Run | Yrd Mat Min Mat Sto Total 879 | 21 119 112 7 620 Wait 3 | . . . . 3 Move 725 | 21 118 105 7 474 Hop 5 | . . 1 . 4 Pick Up 6 | . 1 . . 5 Fast Attach 26 | . . 2 . 24 Attach 3 | . . 1 . 2 Detach 4 | . . 1 . 3 Swap 1 | . . . . 1 Drop 13 | . . . . 13 Fire 20 | . . 2 . 18 Melee 73 | . . . . 73 Ram . | . . . . . Kick . | . . . . . Crush . | . . . . . Escape Stasis . | . . . . . Rewire . | . . . . . Trap . | . . . . . Miscellaneous . | . . . . . Route ------- -11/Scrapyard -10/Materials -10/Mines -9/Materials -9/Storage (discovered 1 exit: [Rec]) History --------- Turn | Location | Event 4 | -11/Scrapyard | Discovered new exit (range 12) 12 | -11/Scrapyard | Entered Materials 65 | -10/Materials | Discovered new exit (range 15) 73 | -10/Materials | Entered Mines 74 | -10/Mines | Met a Derelict bent on vengeance 85 | -10/Mines | Learned Materials emergency access door positions 115 | -10/Mines | Discovered new exit (range 13) 125 | -10/Mines | Entered Materials 125 | -9/Materials | Evolved 2 slots: Utility x2 125 | -9/Materials | Discovered new exit (range 7) 128 | -9/Materials | Entered Storage 171 | -9/Storage | Lost 3 parts (1n1u1w) 243 | -9/Storage | Released all parts (7) 252 | -9/Storage | Lost 3 parts (1p1n1u) 284 | -9/Storage | Core integrity fell below 50% 302 | -9/Storage | Build established: Mutant 633 | -9/Storage | Discovered new exit (range 4) 730 | -9/Storage | Core integrity fell below 20% 735 | -9/Storage | Garrison activated, responded to threat 777 | -9/Storage | Destroyed by S-10 Pest with Light Assault Rifle Last Messages --------------- 00757_ Flail follow-up attack on S-10 Pest. 00757_ S-10 Pest destroyed. 00760_ Sneak attack on R-06 Scavenger. 00760_ Destroyed Lgt. Ion Engine. 00760_ R-06 Scavenger system corrupted by crushing effect. 00761_ R-06 Scavenger system terminally corrupted. 00761_ Tractor Beam fried. 00763_ Acquired Flight Unit. 00765_ Dropped Imp. Flight Unit. 00765_ Acquired Corrupted Flight Unit. 00765_ Integrated Corrupted Flight Unit (+1). 00765_ Complication: Energy sink damages Corrupted Flight Unit (-8). 00767_ Acquired 9 matter. 00768_ Acquired 11 matter. 00774_ C/QOW6 ,SWQLACY2ZUS4 00774_ Critical hit (Burn: +37). 00774_ Flight Unit destroyed. 00776_ Dropped Flail. Map ----- +----------------------------------------------------+ | #### ## #????????????????????????????????? | | !###+####### #????????????????????????????????? | | ### #?#?### #?##?????????????????????????????? | | ! ### ##??### ###?######???????????????????????? | | # ##### ##### ?? ????????????????????? | | [] + ???? ??????????????????? | | # ? ? ??????????????????? | | # ##### ##### ????? ?????????????????? | | ## ##?#?########### ##??????????????????????? | | ## #???#??#?# # #?? ?? ???#?????????????? | | ## #??##??### + #??? ???? #?????????????? | | ## #?#?##???# # ###?##??????????????????? | | ##### ########## # #?#######??##???????????? | | # # # # # ????#???????????? | | # + # # # ? ???????????????? | | # # """ # # " ? ?? #?????????????? | | # # "" "*" # # #? ?? ? ????????????????? | | # # "[" ]" #= [ + #???????? #??#??????????? | | # # "[""[" # %!#%##???" ???? #????????????? | | # # "["""" # # #???????"" ?#????????????? | | + / """?? # # #?? ? ?? ? ##????????????? | | # # #######"###???"?"?#??#???????????? | | ##### #############?##%##?# #?Y??#??#???????????? | | #?### T#?#?#?##?######+#### ??""#??#????????????? | | ##### ##?#?#?#?## # ##??#???????????????? | | ??#"""""#?#####??# @ #??#??#???????????????? | | ??###?????##?###?# Y s#? ??????????????????? | | #???#